bitfinex/quotes_BTCUSD_20241021
["timestamp","ask_amount","ask_price","bid_price","bid_amount"]
[1729509082012,0.3397165,68391.0,68390.0,0.02269097]
[1729509082743,0.3397165,68391.0,68390.0,0.01354446]
[1729509083703,0.3397165,68391.0,68390.0,0.001654]
[1729509083934,0.3397165,68391.0,68390.0,0.01354562]
[1729509087875,0.3397165,68391.0,68390.0,0.001654]
[1729509088122,0.3397165,68391.0,68390.0,0.01354568]
[1729509089540,0.51667565,68391.0,68390.0,0.01354568]
[1729509089772,0.51867565,68391.0,68390.0,0.00622772]
[1729509090014,0.51867565,68391.0,68380.0,0.21563652]
[1729509090015,0.330339,68381.0,68380.0,0.21563652]
[1729509090282,0.330339,68381.0,68380.0,0.22295565]
[1729509090520,0.34329268,68381.0,68380.0,0.00731913]
[1729509091202,0.34329268,68381.0,68380.0,0.01031913]
[1729509091430,0.19705368,68381.0,68380.0,0.01031913]
[1729509091670,0.11495368,68381.0,68380.0,0.01331913]
[1729509091903,0.26119268,68381.0,68380.0,0.01331913]
[1729509092362,0.11495368,68381.0,68380.0,0.01331913]
[1729509092624,0.26119268,68381.0,68380.0,0.01031913]
[1729509093134,0.26419268,68381.0,68380.0,0.01031913]
[1729509093599,0.26419268,68381.0,68380.0,0.00731913]
[1729509094032,0.26819268,68381.0,68380.0,0.00731913]
[1729509094272,0.12195368,68381.0,68380.0,0.00731913]
[1729509094488,0.22195368,68381.0,68380.0,0.00731913]
[1729509094908,0.12495368,68381.0,68380.0,0.00731913]
[1729509095133,0.11995368,68381.0,68380.0,0.16270891]
[1729509095354,0.11995368,68381.0,68380.0,0.47990015]
[1729509095584,0.107,68381.0,68380.0,0.49636536]
[1729509096029,0.104,68381.0,68380.0,0.49636536]
[1729509096247,0.104,68381.0,68380.0,0.49936536]
[1729509096704,0.1,68381.0,68380.0,0.49636536]
[1729509096919,0.1,68381.0,68380.0,0.51455242]
[1729509097153,0.1,68381.0,68380.0,0.51755242]
[1729509097361,0.1,68381.0,68380.0,0.51455242]
[1729509098260,0.1,68381.0,68380.0,0.51755242]
[1729509098472,0.1,68381.0,68380.0,0.51455242]
[1729509099112,0.1,68381.0,68380.0,0.49808721]
[1729509099357,0.06707628,68381.0,68380.0,0.66289052]
[1729509099568,0.06707628,68381.0,68380.0,0.65989052]
[1729509099773,0.06707628,68381.0,68380.0,0.66589052]
[1729509099986,0.06707628,68381.0,68380.0,0.66289052]
[1729509100222,0.06707628,68381.0,68380.0,0.65989052]
[1729509100473,0.06707628,68381.0,68380.0,0.66289052]
[1729509100743,0.06707628,68381.0,68380.0,0.61755013]
[1729509100956,0.06707628,68381.0,68380.0,0.61920613]
[1729509101175,0.06707628,68381.0,68380.0,0.61320613]
[1729509101837,0.06707628,68381.0,68380.0,0.61620613]
[1729509102063,0.06707628,68381.0,68380.0,0.62077904]
[1729509102905,0.06707628,68381.0,68380.0,0.61777904]
[1729509103380,0.06707628,68381.0,68380.0,0.62077904]
[1729509103598,0.06707628,68381.0,68380.0,0.62377904]
[1729509104253,0.06707628,68381.0,68380.0,0.62077904]
[1729509104474,0.06707628,68381.0,68380.0,0.62377904]
[1729509106277,0.06707628,68381.0,68380.0,0.61463297]
[1729509107360,0.06707628,68381.0,68380.0,0.62377882]
[1729509108037,0.06707628,68381.0,68380.0,0.61188906]
[1729509108293,0.06707628,68381.0,68380.0,0.60274321]
[1729509108989,0.06707628,68381.0,68380.0,0.60731615]
[1729509109959,0.06707628,68381.0,68380.0,0.61920581]
[1729509110193,0.06707628,68381.0,68380.0,0.60274321]
[1729509110431,0.06707628,68381.0,68380.0,0.62377836]
[1729509110690,0.06707628,68381.0,68380.0,0.62377837]
[1729509112899,0.06707628,68381.0,68380.0,0.62377829]
[1729509114264,0.06790428,68381.0,68380.0,0.62377829]
[1729509117466,0.06790428,68381.0,68380.0,0.52697829]
[1729509119906,0.06790428,68381.0,68380.0,0.44407829]
[1729509120566,0.06790428,68381.0,68380.0,0.43907829]
[1729509120791,0.06790428,68381.0,68380.0,0.43607829]
[1729509121012,0.06790428,68381.0,68380.0,0.43907829]
[1729509121627,0.06790428,68381.0,68380.0,0.43607829]
[1729509121888,0.06790428,68381.0,68380.0,0.43907829]
[1729509122141,0.06790428,68381.0,68380.0,0.49364861]
[1729509122392,0.06790428,68381.0,68380.0,0.44407829]
[1729509122634,0.06790428,68381.0,68380.0,0.42004321]
[1729509122876,0.06790428,68381.0,68380.0,0.44107962]
[1729509123102,0.06790428,68381.0,68380.0,0.44407962]
[1729509133781,0.06790428,68381.0,68380.0,0.42304321]
[1729509134006,0.06790428,68381.0,68380.0,0.44407999]
[1729509137057,0.24600428,68381.0,68380.0,0.44407999]
[1729509139169,0.24600428,68381.0,68380.0,0.17493378]
[1729509139386,0.24600428,68381.0,68380.0,0.16578735]
[1729509139612,0.2538727,68381.0,68380.0,0.16578735]
[1729509140499,0.2538727,68381.0,68380.0,0.16278735]
[1729509140713,0.2538727,68381.0,68380.0,0.16578735]
[1729509140928,0.2538727,68381.0,68380.0,0.16278844]
[1729509141366,0.2538727,68381.0,68380.0,0.17193568]
[1729509142239,0.2538727,68381.0,68380.0,0.17493568]
[1729509146590,0.0757727,68381.0,68380.0,0.17493568]
[1729509147061,0.0757727,68381.0,68380.0,0.32389483]
[1729509147273,0.06790428,68381.0,68380.0,0.32889483]
[1729509151701,0.06790428,68381.0,68380.0,0.30785615]
[1729509151932,0.06790428,68381.0,68380.0,0.32889448]
[1729509155665,0.06790428,68381.0,68380.0,0.32889365]
[1729509161013,0.06790428,68381.0,68380.0,0.1749345]
[1729509161014,0.14550428,68381.0,68380.0,0.1749345]
[1729509161493,0.15347214,68381.0,68380.0,0.1749345]
[1729509162237,0.07587214,68381.0,68380.0,0.32389365]
[1729509162692,0.06790428,68381.0,68380.0,0.32889365]
[1729509162910,0.06790428,68381.0,68380.0,0.32889335]
[1729509163844,0.06790428,68381.0,68380.0,0.42889335]
[1729509165258,0.03497761,68381.0,68380.0,0.42889335]
[1729509170703,0.03497761,68381.0,68380.0,0.42889328]
[1729509173626,0.03497761,68381.0,68380.0,0.4197467]
[1729509173843,0.03497761,68381.0,68380.0,0.4147467]
[1729509174877,0.12937761,68381.0,68380.0,0.4147467]
[1729509175085,0.12937761,68381.0,68380.0,0.16578755]
[1729509175495,0.12937761,68381.0,68380.0,0.17493504]
[1729509176339,0.13735477,68381.0,68380.0,0.17493504]
[1729509176751,0.21465477,68381.0,68380.0,0.17493504]
[1729509176964,0.21465477,68381.0,68380.0,0.1753649]
[1729509177168,0.21465477,68381.0,68380.0,0.17493504]
[1729509177817,0.21465477,68381.0,68380.0,0.17493728]
[1729509178035,0.21465477,68381.0,68380.0,0.17193728]
[1729509178715,0.21465477,68381.0,68380.0,0.17493728]
[1729509178932,0.20667761,68381.0,68380.0,0.17193728]
[1729509179362,0.20667761,68381.0,68380.0,0.17493728]
[1729509183578,0.20392473,68381.0,68380.0,0.17493703]
[1729509183839,0.20392473,68381.0,68380.0,0.153897]
[1729509184055,0.20392473,68381.0,68380.0,0.17493722]
[1729509185881,0.20392473,68381.0,68380.0,0.02869622]
[1729509185882,0.20892473,68381.0,68380.0,0.02869622]
[1729509186307,0.3631271,68381.0,68380.0,0.0195483]
[1729509186772,0.2168881,68381.0,68380.0,0.0195483]
[1729509186990,0.3631271,68381.0,68380.0,0.0195483]
[1729509187204,0.3631271,68381.0,68380.0,0.0165483]
[1729509187641,0.3631271,68381.0,68380.0,0.006656]
[1729509187829,0.3631271,68381.0,68380.0,0.01854963]
[1729509188075,0.3631271,68381.0,68380.0,0.01654963]
[1729509188297,0.2168881,68381.0,68380.0,0.00623047]
[1729509188515,0.3631271,68381.0,68380.0,0.01454958]
[1729509189282,0.3631271,68381.0,68380.0,0.01354958]
[1729509189487,0.3631271,68381.0,68380.0,0.00623047]
[1729509189488,0.3671271,68381.0,68380.0,0.00623047]
[1729509189706,0.3701271,68381.0,68380.0,0.00623047]
[1729509189918,0.3701271,68381.0,68380.0,0.01354965]
[1729509190141,0.2238881,68381.0,68380.0,0.15979065]
[1729509190344,0.2238881,68381.0,68380.0,0.01354965]
[1729509191292,0.2238881,68381.0,68380.0,0.00623047]
[1729509194263,0.2238881,68381.0,68380.0,0.01354945]
[1729509194477,0.2238881,68381.0,68380.0,0.00623047]
[1729509194729,0.21592473,68381.0,68380.0,0.15247147]
[1729509194981,0.22395827,68381.0,68380.0,0.00623045]
[1729509195206,0.22395827,68381.0,68380.0,0.15247145]
[1729509195439,0.22395827,68381.0,68380.0,0.1597905]
[1729509199213,0.04725827,68381.0,68380.0,0.1597905]
[1729509199470,0.04725827,68381.0,68380.0,0.16893879]
[1729509199698,0.03922473,68381.0,68380.0,0.16893879]
[1729509199914,0.0462287,68381.0,68380.0,0.16893879]
[1729509200625,0.0432287,68381.0,68380.0,0.16893879]
[1729509200865,0.0432287,68381.0,68380.0,0.16935054]
[1729509201101,0.0432287,68381.0,68380.0,0.17235054]
[1729509201317,0.03622473,68381.0,68380.0,0.17235054]
[1729509202038,0.03222473,68381.0,68380.0,0.17235054]
[1729509202501,0.03222473,68381.0,68380.0,0.17493879]
[1729509204187,0.03222473,68381.0,68380.0,0.32389794]
[1729509204663,0.03204872,68381.0,68380.0,0.32389794]
[1729509204909,0.03204872,68381.0,68380.0,0.33861456]
[1729509209176,0.03204872,68381.0,68380.0,0.33861075]
[1729509223653,0.03204872,68381.0,68380.0,0.31757277]
[1729509223868,0.03204872,68381.0,68380.0,0.33860983]
[1729509224308,0.03204872,68381.0,68380.0,0.34360983]
[1729509224531,0.03204872,68381.0,68380.0,0.41980983]
[1729509224765,0.03204872,68381.0,68380.0,0.51980983]
[1729509224991,0.000828,68389.0,68388.0,0.151224]
[1729509225215,0.000828,68389.0,68388.0,0.60824413]
[1729509225433,0.000828,68389.0,68388.0,0.65027593]
[1729509226388,1e-06,68389.0,68388.0,0.65027593]
[1729509226612,1e-06,68389.0,68388.0,0.65327593]
[1729509227063,1e-06,68389.0,68388.0,0.65627593]
[1729509227512,1e-06,68389.0,68388.0,0.6562683]
[1729509228178,1e-06,68389.0,68388.0,0.6792683]
[1729509228419,1e-06,68389.0,68388.0,0.67926807]
[1729509228916,1e-06,68389.0,68388.0,0.63631235]
[1729509229146,1e-06,68389.0,68388.0,0.63331235]
[1729509229374,1e-06,68389.0,68388.0,0.63031235]
[1729509229596,1e-06,68389.0,68388.0,0.64840486]
[1729509229785,1e-06,68389.0,68388.0,0.65040486]
[1729509230028,1e-06,68389.0,68388.0,0.64540486]
[1729509230245,1e-06,68389.0,68388.0,0.65040486]
[1729509230685,1e-06,68389.0,68388.0,0.69136058]
[1729509230907,0.000827,68397.0,68396.0,0.337807]
[1729509231129,0.000827,68397.0,68396.0,0.50779512]
[1729509231381,0.000827,68397.0,68396.0,0.48676615]
[1729509231613,0.000827,68397.0,68396.0,0.5077951]
[1729509231861,0.0089919,68406.0,68405.0,0.151188]
[1729509232093,0.0089919,68406.0,68405.0,0.3211761]
[1729509232320,0.02615503,68406.0,68405.0,0.3211761]
[1729509232545,0.0089919,68406.0,68405.0,0.3211761]
[1729509233193,0.0089919,68406.0,68405.0,0.3231761]
[1729509233640,0.0089919,68406.0,68405.0,0.3241761]
[1729509234078,0.0089919,68406.0,68405.0,0.3231761]
[1729509234293,0.0089919,68406.0,68405.0,0.32359141]
[1729509234520,0.0089919,68406.0,68405.0,0.3190199]
[1729509234765,0.0089919,68406.0,68405.0,0.3235908]
[1729509234954,0.0089919,68406.0,68405.0,0.3261755]
[1729509235663,0.0089919,68406.0,68405.0,0.3241755]
[1729509236086,0.0089919,68406.0,68405.0,0.3231755]
[1729509236341,0.0089919,68406.0,68405.0,0.3211755]
[1729509236541,0.0089919,68406.0,68405.0,0.3261755]
[1729509236985,9e-07,68406.0,68405.0,0.72201202]
[1729509237211,0.000867,68430.0,68411.0,0.005]
[1729509237212,0.21563652,68419.0,68411.0,0.005]
[1729509237427,0.21563652,68419.0,68418.0,0.25116]
[1729509237647,0.0973,68426.0,68425.0,0.146145]
[1729509237861,0.0973,68426.0,68425.0,0.30698974]
[1729509238537,0.078467,68430.0,68428.0,0.146139]
[1729509238747,0.078467,68430.0,68428.0,0.15802459]
[1729509240004,0.078467,68430.0,68428.0,0.16002459]
[1729509240217,0.078467,68430.0,68428.0,0.31398374]
[1729509240433,0.078467,68430.0,68428.0,0.3251265]
[1729509240684,0.000867,68430.0,68428.0,0.3251265]
[1729509241407,0.000867,68430.0,68428.0,0.36808222]
[1729509243009,0.000867,68430.0,68428.0,0.3251265]
[1729509243671,0.000867,68430.0,68428.0,0.34010925]
[1729509244150,0.000867,68430.0,68428.0,0.3190809]
[1729509244361,0.000867,68430.0,68428.0,0.34010191]
[1729509247311,0.001656,68433.0,68432.0,0.14613]
[1729509247563,0.001656,68433.0,68432.0,0.31611016]
[1729509247813,0.001656,68433.0,68432.0,0.29508915]
[1729509248034,0.001656,68433.0,68432.0,0.3161102]
[1729509248726,0.001656,68433.0,68432.0,0.3171102]
[1729509248957,0.001656,68433.0,68432.0,0.3221102]
[1729509249216,0.001656,68433.0,68432.0,0.3231102]
[1729509250125,0.001656,68433.0,68432.0,0.3221102]
[1729509250360,0.001656,68433.0,68432.0,0.3171102]
[1729509250580,0.001656,68433.0,68432.0,0.3241102]
[1729509251280,0.001656,68433.0,68432.0,0.3231102]
[1729509251528,0.001656,68433.0,68432.0,0.3251102]
[1729509251808,0.001656,68433.0,68432.0,0.32510978]
[1729509253867,0.001656,68434.0,68433.0,0.151128]
[1729509254096,0.001656,68434.0,68433.0,0.30008715]
[1729509254319,0.001656,68434.0,68433.0,0.32357048]
[1729509254544,0.001656,68434.0,68433.0,0.32110778]
[1729509254757,0.001656,68434.0,68433.0,0.32329985]
[1729509255217,0.001656,68434.0,68433.0,0.32729985]
[1729509258203,0.001656,68434.0,68433.0,0.42729985]
[1729509261021,0.001656,68440.0,68433.0,0.42729985]
[1729509261022,0.001656,68440.0,68439.0,0.005]
[1729509261240,0.001656,68440.0,68439.0,0.32109478]
[1729509261458,0.00210723,68440.0,68439.0,0.32109478]
[1729509261690,0.001656,68440.0,68439.0,0.32109478]
[1729509262626,0.001656,68440.0,68439.0,0.30207415]
[1729509262869,0.001656,68440.0,68439.0,0.32509283]
[1729509265569,0.001656,68440.0,68439.0,0.32009283]
[1729509265570,0.093956,68440.0,68439.0,0.32009283]
[1729509265857,0.09442159,68440.0,68439.0,0.32009283]
[1729509266283,0.093956,68440.0,68439.0,0.32009283]
[1729509266525,0.093956,68440.0,68439.0,0.3351989]
[1729509266984,0.093956,68440.0,68439.0,0.32009283]
[1729509268977,0.06105583,68440.0,68439.0,0.32009283]
[1729509269214,0.06105583,68440.0,68439.0,0.31095427]
[1729509270137,0.06105583,68440.0,68439.0,0.3200932]
[1729509271779,0.0777,68446.0,68445.0,0.146102]
[1729509272047,0.1726,68446.0,68445.0,0.16712105]
[1729509273627,0.1726,68446.0,68445.0,0.16712075]
[1729509274537,0.1726,68446.0,68445.0,0.16912075]
[1729509274751,0.1726,68446.0,68445.0,0.17112075]
[1729509276188,0.1726,68446.0,68445.0,0.16198216]
[1729509276672,0.1726,68446.0,68445.0,0.31094131]
[1729509276899,0.17253892,68446.0,68445.0,0.29906115]
[1729509277145,0.17253892,68446.0,68445.0,0.32007967]
[1729509277832,0.17253892,68446.0,68445.0,0.29906115]
[1729509278073,0.17253892,68446.0,68445.0,0.32007972]
[1729509278542,0.17253892,68446.0,68445.0,0.17112057]
[1729509280137,0.17336592,68446.0,68445.0,0.16198206]
[1729509280586,0.17336592,68446.0,68445.0,0.150102]
[1729509280811,0.17336592,68446.0,68445.0,0.16198242]
[1729509283330,0.17336592,68446.0,68445.0,0.1623751]
[1729509284419,0.17336592,68446.0,68445.0,0.16237527]
[1729509284637,0.17336592,68446.0,68445.0,0.17464854]
[1729509285335,0.17336592,68446.0,68445.0,0.18339474]
[1729509288172,0.17836592,68446.0,68445.0,0.18339492]
[1729509288878,0.17836592,68446.0,68445.0,0.18139492]
[1729509289532,0.17836592,68446.0,68445.0,0.18339492]
[1729509291311,0.17836592,68446.0,68445.0,0.17112165]
[1729509291529,0.17336592,68446.0,68445.0,0.17112165]
[1729509291960,0.17336592,68446.0,68445.0,0.16912165]
[1729509292368,0.17336592,68446.0,68445.0,0.17077565]
[1729509293310,0.17336592,68446.0,68445.0,0.17277565]
[1729509293925,0.095727,68446.0,68445.0,0.17277565]
[1729509295995,0.095727,68446.0,68445.0,0.17277496]
[1729509296260,0.095727,68446.0,68445.0,0.17277505]
[1729509299691,0.095727,68446.0,68445.0,0.151756]
[1729509299902,0.095727,68446.0,68445.0,0.17277547]
[1729509301581,0.183427,68446.0,68445.0,0.17277547]
[1729509301822,0.3529565,68446.0,68445.0,0.02667347]
[1729509302080,0.38519024,68446.0,68445.0,0.01753457]
[1729509302345,0.37766486,68446.0,68445.0,0.005654]
[1729509302581,0.37766486,68446.0,68445.0,0.0102244]
[1729509302823,0.36766486,68446.0,68445.0,0.0082244]
[1729509303063,0.19856486,68446.0,68445.0,0.1543264]
[1729509303319,0.19856486,68446.0,68445.0,0.16063865]
[1729509303771,0.19856486,68446.0,68445.0,0.16263865]
[1729509304284,0.19856486,68446.0,68445.0,0.16063865]
[1729509304958,0.19856486,68446.0,68445.0,0.16163865]
[1729509305625,0.20356486,68446.0,68445.0,0.16163865]
[1729509305856,0.19856486,68446.0,68445.0,0.16163865]
[1729509306557,0.19856486,68446.0,68445.0,0.16063865]
[1729509307018,0.19856486,68446.0,68445.0,0.16163865]
[1729509308348,0.19856486,68446.0,68445.0,0.15963865]
[1729509308565,0.19856486,68446.0,68445.0,0.01453665]
[1729509308788,0.19856486,68446.0,68445.0,0.0072244]
[1729509308789,0.37266486,68446.0,68445.0,0.0072244]
[1729509309008,0.59972401,68446.0,68445.0,0.0062244]
[1729509309232,0.59972401,68446.0,68445.0,0.001654]
[1729509310374,0.59972401,68446.0,68445.0,0.002654]
[1729509310795,0.59972401,68446.0,68445.0,0.001654]
[1729509311243,0.59972401,68446.0,68445.0,0.002654]
[1729509311460,0.59972401,68446.0,68445.0,0.003654]
[1729509311937,0.59972401,68446.0,68445.0,0.002654]
[1729509312152,0.59972401,68446.0,68445.0,0.003654]
[1729509312368,0.60172401,68446.0,68445.0,0.003654]
[1729509314116,0.72042121,68446.0,68445.0,0.003654]
[1729509314339,0.60172401,68446.0,68445.0,0.003654]
[1729509315449,0.02,68440.0,68439.0,0.001654]
[1729509315668,0.50917215,68440.0,68439.0,0.001654]
[1729509315889,0.51837931,68440.0,68439.0,0.001654]
[1729509316540,0.19530716,68440.0,68439.0,0.001654]
[1729509316792,0.19030716,68440.0,68439.0,0.001654]
[1729509317441,0.19030716,68440.0,68439.0,0.0062247]
[1729509317658,0.19030716,68440.0,68439.0,0.1523397]
[1729509318093,0.19130716,68440.0,68439.0,0.1523397]
[1729509318298,0.19130716,68440.0,68439.0,0.147769]
[1729509318507,0.18630716,68440.0,68439.0,0.1523397]
[1729509318719,0.19130716,68440.0,68439.0,0.1523397]
[1729509318900,0.18630716,68440.0,68439.0,0.1523397]
[1729509319149,0.19130716,68440.0,68439.0,0.1523397]
[1729509319407,0.19130716,68440.0,68439.0,0.147769]
[1729509319632,0.19130716,68440.0,68439.0,0.15233969]
[1729509324085,0.19130716,68440.0,68439.0,0.147769]
[1729509324297,0.19130716,68440.0,68439.0,0.15233969]
[1729509326078,0.01520716,68440.0,68439.0,0.15233969]
[1729509326340,0.01520716,68440.0,68439.0,0.15965234]
[1729509326824,0.01020716,68440.0,68439.0,0.15965234]
[1729509327076,0.01520716,68440.0,68439.0,0.15965234]
[1729509327303,0.007,68440.0,68439.0,0.15965234]
[1729509327785,0.1857,68440.0,68439.0,0.01353734]
[1729509327990,0.330813,68440.0,68439.0,0.01353734]
[1729509328236,0.331813,68440.0,68439.0,0.01353734]
[1729509328459,0.330813,68440.0,68439.0,0.01353734]
[1729509328723,0.1847,68440.0,68439.0,0.16165234]
[1729509328968,0.1847,68440.0,68439.0,0.01753734]
[1729509329213,0.1837,68440.0,68439.0,0.15965234]
[1729509329441,0.1847,68440.0,68439.0,0.15965234]
[1729509329666,0.1857,68440.0,68439.0,0.15965234]
[1729509329892,0.1857,68440.0,68439.0,0.01353734]
[1729509330104,0.1857,68440.0,68439.0,0.15965234]
[1729509330537,0.19489805,68440.0,68439.0,0.15965234]
[1729509331062,0.19489805,68440.0,68439.0,0.01353734]
[1729509331302,0.19489805,68440.0,68439.0,0.15965234]
[1729509331769,0.01619805,68440.0,68439.0,0.15965234]
[1729509332262,0.01119805,68440.0,68439.0,0.15965234]
[1729509332514,0.01119805,68440.0,68439.0,0.16879291]
[1729509332785,0.002,68440.0,68439.0,0.31775206]
[1729509333024,0.002,68440.0,68439.0,0.49525206]
[1729509334652,0.001,68440.0,68439.0,0.49525206]
[1729509334865,0.000827,68445.0,68444.0,0.146104]
[1729509335293,0.000827,68445.0,68444.0,0.1671236]
[1729509335479,0.00757135,68445.0,68444.0,0.1671236]
[1729509335960,0.000827,68445.0,68444.0,0.1671236]
[1729509336178,0.000827,68445.0,68444.0,0.1691236]
[1729509336409,0.000827,68445.0,68444.0,0.1711236]
[1729509336636,0.000827,68445.0,68444.0,0.1691236]
[1729509337466,0.000827,68445.0,68444.0,0.1711236]
[1729509337679,0.000827,68445.0,68444.0,0.1691236]
[1729509338128,0.000827,68445.0,68444.0,0.1711236]
[1729509338534,0.000827,68445.0,68444.0,0.1671236]
[1729509338788,0.000827,68445.0,68444.0,0.1691236]
[1729509339015,0.000827,68445.0,68444.0,0.1711237]
[1729509339236,0.000827,68445.0,68444.0,0.1691237]
[1729509339470,0.000827,68445.0,68444.0,0.1711237]
[1729509346379,0.000827,68445.0,68444.0,0.17112367]
[1729509347520,0.073927,68446.0,68445.0,0.146102]
[1729509347728,0.073927,68446.0,68445.0,0.16712167]
[1729509348187,0.073927,68446.0,68445.0,0.24352167]
[1729509348643,0.073927,68446.0,68445.0,0.16712167]
[1729509348951,0.073927,68446.0,68445.0,0.16912167]
[1729509349584,0.073927,68446.0,68445.0,0.17112167]
[1729509349827,0.073927,68446.0,68445.0,0.17112144]
[1729509350271,0.073927,68446.0,68445.0,0.32008059]
[1729509350716,0.073927,68446.0,68445.0,0.32007951]
[1729509350925,0.073927,68446.0,68445.0,0.31679845]
[1729509351138,0.073927,68446.0,68445.0,0.31712038]
[1729509351346,0.073927,68446.0,68445.0,0.31679845]
[1729509351550,0.073927,68446.0,68445.0,0.31712038]
[1729509351996,0.073927,68446.0,68445.0,0.31679845]
[1729509352217,0.073927,68446.0,68445.0,0.31712038]
[1729509352921,0.073927,68446.0,68445.0,0.31679845]
[1729509354207,0.073927,68446.0,68445.0,0.16816123]
[1729509354421,0.073927,68446.0,68445.0,0.1678393]
[1729509356337,0.073927,68446.0,68445.0,0.16816123]
[1729509356586,0.073927,68446.0,68445.0,0.16816141]
[1729509357014,0.073927,68446.0,68445.0,0.16783928]
[1729509357218,0.073927,68446.0,68445.0,0.16783944]
[1729509357669,0.073927,68446.0,68445.0,0.16816147]
[1729509359612,0.073927,68446.0,68445.0,0.16816167]
[1729509360211,0.073927,68446.0,68445.0,0.16783944]
[1729509360436,0.073927,68446.0,68445.0,0.16775741]
[1729509361150,0.073927,68446.0,68445.0,0.1677572]
[1729509363301,0.073927,68446.0,68445.0,0.14673891]
[1729509363562,0.073927,68446.0,68445.0,0.1677575]
[1729509365548,0.07372197,68446.0,68445.0,0.1677575]
[1729509366740,0.07372197,68446.0,68445.0,0.18244815]
[1729509367243,0.07372197,68446.0,68445.0,0.18244841]
[1729509369816,0.07372197,68446.0,68445.0,0.16775776]
[1729509370031,0.07872197,68446.0,68445.0,0.16775776]
[1729509370249,0.17122197,68446.0,68445.0,0.16775776]
[1729509370486,0.25162197,68446.0,68445.0,0.16775776]
[1729509370970,0.26616099,68446.0,68445.0,0.16775856]
[1729509375968,0.26616099,68446.0,68445.0,0.16808034]
[1729509377405,0.26616099,68446.0,68445.0,0.16941456]
[1729509379850,0.18576099,68446.0,68445.0,0.16941456]
[1729509380990,0.17122197,68446.0,68445.0,0.16941456]
[1729509381206,0.18618044,68446.0,68445.0,0.16941456]
[1729509381893,0.18618044,68446.0,68445.0,0.16941458]
[1729509384400,0.09368044,68446.0,68445.0,0.16941458]
[1729509385334,0.09368044,68446.0,68445.0,0.16941366]
[1729509388688,0.18838044,68446.0,68445.0,0.16941366]
[1729509388942,0.26768044,68446.0,68445.0,0.17277675]
[1729509389620,0.26768044,68446.0,68445.0,0.16877675]
[1729509389835,0.26768044,68446.0,68445.0,0.17277675]
[1729509390052,0.26768044,68446.0,68445.0,0.17077675]
[1729509390506,0.26868044,68446.0,68445.0,0.17077675]
[1729509391814,0.26868044,68446.0,68445.0,0.16877675]
[1729509392027,0.26968044,68446.0,68445.0,0.16877675]
[1729509393162,0.26968044,68446.0,68445.0,0.16877928]
[1729509395034,0.26968044,68446.0,68445.0,0.02267728]
[1729509395257,0.26968044,68446.0,68445.0,0.01353759]
[1729509395258,0.41578044,68446.0,68445.0,0.01353759]
[1729509396513,0.41578044,68446.0,68445.0,0.01353827]
[1729509396719,0.12825117,68446.0,68445.0,0.0062261]
[1729509397028,0.12825117,68446.0,68445.0,0.0135383]
[1729509398209,0.16357073,68446.0,68445.0,0.0135383]
[1729509398465,0.16357073,68446.0,68445.0,0.0062261]
[1729509399425,0.16557073,68446.0,68445.0,0.0062261]
[1729509399659,0.33667073,68446.0,68445.0,0.0062261]
[1729509400815,0.33867073,68446.0,68445.0,0.0062261]
[1729509401053,0.33667073,68446.0,68445.0,0.0062261]
[1729509401547,0.33867073,68446.0,68445.0,0.0062261]
[1729509401784,0.33667073,68446.0,68445.0,0.0062261]
[1729509402018,0.33749873,68446.0,68445.0,0.0062261]
[1729509402281,0.33949873,68446.0,68445.0,0.0062261]
[1729509402753,0.33749873,68446.0,68445.0,0.0062261]
[1729509403008,0.33949873,68446.0,68445.0,0.0062261]
[1729509403468,0.48845788,68446.0,68445.0,0.0062261]
[1729509403952,0.51145788,68446.0,68445.0,0.001656]
[1729509404186,0.51145788,68446.0,68445.0,0.00622629]
[1729509404420,0.50945788,68446.0,68445.0,0.00622629]
[1729509404911,0.50945788,68446.0,68445.0,0.00722629]
[1729509406163,0.36535788,68446.0,68445.0,0.00822629]
[1729509407400,0.36535788,68446.0,68445.0,0.16164023]
[1729509407401,0.01529873,68446.0,68445.0,0.16164023]
[1729509407629,0.01529873,68446.0,68445.0,0.17077997]
[1729509407871,0.002828,68446.0,68445.0,0.17077935]
[1729509408847,0.002828,68446.0,68445.0,0.16977935]
[1729509409349,0.000828,68446.0,68445.0,0.17077935]
[1729509409590,0.000828,68446.0,68445.0,0.17277935]
[1729509409910,0.000828,68446.0,68445.0,0.17077935]
[1729509411236,0.000828,68446.0,68445.0,0.17277935]
[1729509411481,0.000828,68446.0,68445.0,0.151758]
[1729509411724,0.000828,68446.0,68445.0,0.17277885]
[1729509412902,0.005868,68450.0,68449.0,0.146094]
[1729509413155,0.000868,68450.0,68449.0,0.15797535]
[1729509413383,0.01332716,68450.0,68449.0,0.15797535]
[1729509414791,0.002868,68450.0,68449.0,0.15797535]
[1729509415052,0.01532716,68450.0,68449.0,0.15797535]
[1729509415286,0.01732716,68450.0,68449.0,0.146094]
[1729509415517,0.01732716,68450.0,68449.0,0.15797512]
[1729509415745,0.01732716,68450.0,68449.0,0.16711448]
[1729509415968,0.01332716,68450.0,68449.0,0.15797514]
[1729509416199,0.01332716,68450.0,68449.0,0.16711452]
[1729509416411,0.01432716,68450.0,68449.0,0.16711452]
[1729509416629,0.01332716,68450.0,68449.0,0.16711452]
[1729509417095,0.01532716,68450.0,68449.0,0.16711452]
[1729509417318,0.01532716,68450.0,68449.0,0.01188114]
[1729509417319,0.34101916,68450.0,68449.0,0.01188114]
[1729509417585,0.34601916,68450.0,68449.0,0.01188114]
[1729509417808,0.52297831,68450.0,68449.0,0.01188114]
[1729509418026,0.52597831,68450.0,68449.0,0.00456967]
[1729509418248,0.52397831,68450.0,68449.0,0.00456967]
[1729509418464,0.52297831,68450.0,68449.0,0.00456967]
[1729509418930,0.52497831,68450.0,68449.0,0.00456967]
[1729509419147,0.1511,68446.0,68445.0,0.001656]
[1729509419362,0.1511,68446.0,68445.0,0.01353849]
[1729509419572,0.15868145,68446.0,68445.0,0.01353849]
[1729509419788,0.16357808,68446.0,68445.0,0.01353849]
[1729509420683,0.34553723,68446.0,68445.0,0.00622619]
[1729509420939,0.61581655,68446.0,68445.0,0.00622619]
[1729509421159,0.52013723,68446.0,68445.0,0.00622619]
[1729509421873,0.52213723,68446.0,68445.0,0.00822662]
[1729509422103,0.52013723,68446.0,68445.0,0.01022666]
[1729509422334,0.52013723,68446.0,68445.0,0.00822666]
[1729509422570,0.52013723,68446.0,68445.0,0.00622666]
[1729509422807,0.52213723,68446.0,68445.0,0.00722666]
[1729509423047,0.52413723,68446.0,68445.0,0.00822666]
[1729509423270,0.52613723,68446.0,68445.0,0.00822666]
[1729509423747,0.62613723,68446.0,68445.0,0.00822666]
[1729509423973,0.74727655,68446.0,68445.0,0.003656]
[1729509425551,0.64901314,68446.0,68445.0,0.003656]
[1729509425554,0.64701314,68446.0,68445.0,0.003656]
[1729509425804,0.63701314,68446.0,68445.0,0.003656]